fUSD/lending_fUSD_20250602
["ID","MTS","AMOUNT","RATE_DAILY","PERIOD"]
[363715878,1748842240922,-1081.07553546,0.00019178,2]
[363715880,1748842240932,-1081.07553546,0.00019178,2]
[363715882,1748842240941,-1081.07553546,0.00019178,2]
[363715884,1748842240951,-1081.07553546,0.00019178,2]
[363715886,1748842240960,-1081.07553546,0.00019178,2]
[363715888,1748842240971,-1081.07553546,0.00019178,2]
[363715890,1748842240982,-1081.07553546,0.00019178,2]
[363715892,1748842240991,-1081.07553546,0.00019178,2]
[363715894,1748842241000,-1081.07553546,0.00019178,2]
[363715896,1748842241010,-1081.07553546,0.00019178,2]
[363715898,1748842241019,-1081.07553546,0.00019178,2]
[363715900,1748842241029,-1081.07553546,0.00019178,2]
[363715902,1748842241039,-1081.07553546,0.00019178,2]
[363715904,1748842241049,-1081.07553546,0.00019178,2]
[363715906,1748842241058,-1081.07553546,0.00019178,2]
[363715908,1748842241067,-1081.07553546,0.00019178,2]
[363715910,1748842241076,-1081.07553546,0.00019178,2]
[363715912,1748842241085,-1081.07553546,0.00019178,2]
[363715914,1748842241094,-1081.07553546,0.00019178,2]
[363715916,1748842241104,-1081.07553546,0.00019178,2]
[363715918,1748842241113,-1081.07553546,0.00019178,2]
[363715920,1748842241122,-1081.07553546,0.00019178,2]
[363715922,1748842241135,-1081.07553546,0.00019178,2]
[363715924,1748842241146,-1081.07553546,0.00019178,2]
[363715926,1748842241156,-1081.07553546,0.00019178,2]
[363715927,1748842241165,-1081.07553546,0.00019178,2]
[363715929,1748842241175,-1081.07553546,0.00019178,2]
[363715932,1748842241184,-1081.07553546,0.00019178,2]
[363715933,1748842241194,-1081.07553546,0.00019178,2]
[363715935,1748842241203,-427.68290521,0.00019178,2]
[363715938,1748842241212,-1081.07553546,0.00019178,2]
[363715940,1748842241222,-1081.07553546,0.00019178,2]
[363715942,1748842241232,-1081.07553546,0.00019178,2]
[363715944,1748842241241,-1081.07553546,0.00019178,2]
[363715946,1748842241250,-1081.07553546,0.00019178,2]
[363715948,1748842241259,-1081.07553546,0.00019178,2]
[363715950,1748842241269,-1081.07553546,0.00019178,2]
[363715951,1748842241278,-1081.07553546,0.00019178,2]
[363715954,1748842241290,-1081.07553546,0.00019178,2]
[363715955,1748842241299,-1081.07553546,0.00019178,2]
[363715957,1748842241310,-1081.07553546,0.00019178,2]
[363715960,1748842241319,-1081.07553546,0.00019178,2]
[363715961,1748842241330,-1081.07553546,0.00019178,2]
[363715964,1748842241340,-1081.07553546,0.00019178,2]
[363715965,1748842241350,-420.0,0.00019178,2]
[363715967,1748842241360,-550.72688201,0.00019178,2]
[363715969,1748842241370,-420.0,0.00019178,2]
[363715972,1748842241379,-431.83597243,0.00019178,2]
[363715973,1748842241389,-425.31783206,0.00019178,2]
[363715975,1748842241398,-440.64295798,0.00019178,2]
[363715977,1748842241408,-420.0,0.00019178,2]
[363715980,1748842241417,-425.55111624,0.00019178,2]
[363715982,1748842241427,-422.41656882,0.00019178,2]
[363715983,1748842241436,-462.65948633,0.00019178,2]
[363715985,1748842241445,-432.32386219,0.00019178,2]
[363715987,1748842241454,-453.92487577,0.00019178,2]
[363715989,1748842241463,-327.66661918,0.00019178,2]
[363715991,1748842241472,-422.23354615,0.00019178,2]
[363715993,1748842241481,-420.0,0.00019178,2]
[363715995,1748842241491,-428.98415361,0.00019178,2]
[363715997,1748842241500,-421.79162404,0.00019178,2]
[363715999,1748842241514,-425.44174423,0.00019178,2]
[363716001,1748842241523,-431.18984596,0.00019178,2]
[363716003,1748842241532,-519.08789441,0.00019178,2]
[363716005,1748842241541,-1064.18373021,0.00019178,2]
[363716007,1748842241553,-1064.18373021,0.00019178,2]
[363716009,1748842241562,-1064.18373021,0.00019178,2]
[363716011,1748842241572,-1064.18373021,0.00019178,2]
[363716013,1748842241582,-1064.18373021,0.00019178,2]
[363716015,1748842241592,-1064.18373021,0.00019178,2]
[363716017,1748842241600,-1064.18373021,0.00019178,2]
[363716019,1748842241609,-1064.18373021,0.00019178,2]
[363716021,1748842241619,-1064.18373021,0.00019178,2]
[363716023,1748842241629,-1064.18373021,0.00019178,2]
[363716025,1748842241638,-1064.18373021,0.00019178,2]
[363716028,1748842241647,-1064.18373021,0.00019178,2]
[363716029,1748842241657,-1064.18373021,0.00019178,2]
[363716032,1748842241666,-1064.18373021,0.00019178,2]
[363716034,1748842241675,-1064.18373021,0.00019178,2]
[363716035,1748842241684,-423.49403943,0.00019178,2]
[363716038,1748842241694,-1064.18373021,0.00019178,2]
[363716039,1748842241703,-1064.18373021,0.00019178,2]
[363716041,1748842241712,-1064.18373021,0.00019178,2]
[363716043,1748842241722,-1064.18373021,0.00019178,2]
[363716046,1748842241732,-1064.18373021,0.00019178,2]
[363716048,1748842241741,-1064.18373021,0.00019178,2]
[363716049,1748842241751,-1064.18373021,0.00019178,2]
[363716051,1748842241760,-1064.18373021,0.00019178,2]
[363716053,1748842241769,-425.13794603,0.00019178,2]
[363716055,1748842241779,-1064.18373021,0.00019178,2]
[363716057,1748842241788,-1064.18373021,0.00019178,2]
[363716059,1748842241797,-1064.18373021,0.00019178,2]
[363716061,1748842241807,-1064.18373021,0.00019178,2]
[363716063,1748842241816,-1064.18373021,0.00019178,2]
[363716065,1748842241826,-430.3834389,0.00019178,2]
[363716067,1748842241835,-422.40577101,0.00019178,2]
[363716069,1748842241844,-422.52903083,0.00019178,2]
[363716071,1748842241853,-433.90012067,0.00019178,2]
[363716073,1748842241863,-424.91979619,0.00019178,2]
[363716075,1748842241872,-439.70545527,0.00019178,2]
[363716077,1748842241881,-420.0,0.00019178,2]
[363716079,1748842241890,-423.62970908,0.00019178,2]
[363716081,1748842241900,-434.6492576,0.00019178,2]
[363716083,1748842241909,-264.52061501,0.00019178,2]
[363716085,1748842241918,-420.0,0.00019178,2]
[363716087,1748842241927,-429.15070561,0.00019178,2]
[363716089,1748842241937,-420.0,0.00019178,2]
[363716091,1748842241946,-427.31813057,0.00019178,2]
[363716093,1748842241955,-421.6271811,0.00019178,2]
[363716095,1748842241965,-469.44813852,0.00019178,2]
[363716097,1748842241976,-420.0,0.00019178,2]
[363716099,1748842241987,-423.73109071,0.00019178,2]
[363716101,1748842241997,-429.76633998,0.00019178,2]
[363716103,1748842242007,-422.54244986,0.00019178,2]
[363716105,1748842242017,-549.80841461,0.00019178,2]
[363716107,1748842242027,-420.0,0.00019178,2]
[363716109,1748842242037,-423.79084182,0.00019178,2]
[363716111,1748842242048,-420.0,0.00019178,2]
[363716113,1748842242058,-423.26750327,0.00019178,2]
[363716115,1748842242067,-420.0,0.00019178,2]
[363716117,1748842242077,-420.0,0.00019178,2]
[363716119,1748842242087,-421.32295444,0.00019178,2]
[363716121,1748842242097,-1064.1837302,0.00019178,2]
[363716123,1748842242106,-1064.1837302,0.00019178,2]
[363716125,1748842242115,-1064.1837302,0.00019178,2]
[363716127,1748842242125,-1064.1837302,0.00019178,2]
[363716129,1748842242135,-424.46654298,0.00019178,2]
[363716130,1748842242145,-423.01839486,0.00019178,2]
[363716131,1748842242155,-420.0,0.00019178,2]
[363716132,1748842242166,-420.0,0.00019178,2]
[363716133,1748842242175,-420.0,0.00019178,2]
[363716134,1748842242185,-420.0,0.00019178,2]
[363716135,1748842242195,-420.0,0.00019178,2]
[363716136,1748842242205,-420.0,0.00019178,2]
[363716157,1748842242422,-424.69820666,0.00019178,2]
[363716159,1748842242432,-504.58589688,0.00019178,2]
[363716161,1748842242442,-420.0,0.00019178,2]
[363716163,1748842242452,-437.92901336,0.00019178,2]
[363716165,1748842242461,-424.45402292,0.00019178,2]
[363716167,1748842242471,-495.67296856,0.00019178,2]
[363716169,1748842242481,-420.0,0.00019178,2]
[363716171,1748842242490,-426.2482328,0.00019178,2]
[363716173,1748842242500,-420.0,0.00019178,2]
[363716175,1748842242514,-425.03849324,0.00019178,2]
[363716177,1748842242523,-421.41813113,0.00019178,2]
[363716179,1748842242533,-420.0,0.00019178,2]
[363716181,1748842242543,-421.73338,0.00019178,2]
[363716182,1748842242553,-420.0,0.00019178,2]
[363716184,1748842242563,-388.83110871,0.00019178,2]
[363716185,1748842242572,-420.0,0.00019178,2]
[363716186,1748842242582,-420.0,0.00019178,2]
[363716187,1748842242591,-420.0,0.00019178,2]
[363716188,1748842242601,-432.77724838,0.00019178,2]
[363716189,1748842242610,-432.87554074,0.00019178,2]
[363716190,1748842242620,-423.9090186,0.00019178,2]
[363716191,1748842242629,-420.0,0.00019178,2]
[363716192,1748842242639,-430.1185272,0.00019178,2]
[363716193,1748842242649,-422.12544297,0.00019178,2]
[363716194,1748842242658,-428.76478457,0.00019178,2]
[363716195,1748842242668,-427.46911828,0.00019178,2]
[363716196,1748842242678,-420.0,0.00019178,2]
[363716197,1748842242688,-431.56255534,0.00019178,2]
[363716198,1748842242698,-434.27143203,0.00019178,2]
[363716199,1748842242707,-507.14551392,0.00019178,2]
[363716200,1748842242717,-428.54072521,0.00019178,2]
[363716201,1748842242727,-420.0,0.00019178,2]
[363716202,1748842242736,-420.0,0.00019178,2]
[363716203,1748842242746,-420.0,0.00019178,2]
[363716204,1748842242756,-420.0,0.00019178,2]
[363716205,1748842242765,-431.90210052,0.00019178,2]
[363716206,1748842242774,-196.8351057,0.00019178,2]
[363716207,1748842242783,-420.0,0.00019178,2]
[363716208,1748842242793,-435.58972321,0.00019178,2]
[363716209,1748842242802,-422.75342159,0.00019178,2]
[363716210,1748842242811,-491.88849602,0.00019178,2]
[363716211,1748842242821,-522.06488284,0.00019178,2]
[363716212,1748842242830,-424.40777982,0.00019178,2]
[363716213,1748842242839,-335.7077906,0.00019178,2]
[363716214,1748842242848,-427.0750853,0.00019178,2]
[363716215,1748842242857,-422.08507032,0.00019178,2]
[363716216,1748842242866,-536.87,0.00019178,2]
[363716217,1748842242875,-431.80102931,0.00019178,2]
[363716218,1748842242885,-422.5873372,0.00019178,2]
[363716219,1748842242894,-424.79965925,0.00019178,2]
[363716220,1748842242904,-422.34554151,0.00019178,2]
[363716221,1748842242914,-522.4782467,0.00019178,2]
[363716222,1748842242924,-420.0,0.00019178,2]
[363716223,1748842242933,-432.54577676,0.00019178,2]
[363716224,1748842242943,-423.79800969,0.00019178,2]
[363716225,1748842242952,-420.0,0.00019178,2]
[363716226,1748842242962,-426.24396617,0.00019178,2]
[363716227,1748842242971,-420.0,0.00019178,2]
[363716228,1748842242981,-427.71396872,0.00019178,2]
[363716229,1748842242991,-420.0,0.00019178,2]
[363716230,1748842243000,-423.46160475,0.00019178,2]
[363716231,1748842243010,-420.0,0.00019178,2]
[363716232,1748842243019,-439.44354162,0.00019178,2]
[363716233,1748842243028,-424.65287504,0.00019178,2]
[363716234,1748842243037,-446.3172402,0.00019178,2]
[363716235,1748842243047,-559.45344531,0.00019178,2]
[363716236,1748842243057,-425.28849482,0.00019178,2]
[363716237,1748842243066,-429.90477255,0.00019178,2]
[363716238,1748842243076,-420.0,0.00019178,2]
[363716239,1748842243085,-420.0,0.00019178,2]
[363716240,1748842243096,-424.21750343,0.00019178,2]
[363716241,1748842243106,-420.0,0.00019178,2]
[363716242,1748842243115,-275.48766996,0.00019178,2]
[363716243,1748842243125,-421.41303659,0.00019178,2]
[363716244,1748842243139,-278.06851739,0.00019178,2]
[363716245,1748842243149,-420.0,0.00019178,2]
[363716246,1748842243158,-420.0,0.00019178,2]
[363716247,1748842243168,-420.0,0.00019178,2]
[363716248,1748842243178,-432.83654666,0.00019178,2]
[363716249,1748842243187,-433.2595646,0.00019178,2]
[363716250,1748842243196,-288.71064766,0.00019178,2]
[363716251,1748842243206,-420.0,0.00019178,2]
[363716252,1748842243216,-424.64437125,0.00019178,2]
[363716253,1748842243226,-422.84965486,0.00019178,2]
[363716254,1748842243236,-420.0,0.00019178,2]
[363716255,1748842243245,-470.19300608,0.00019178,2]
[363716256,1748842243255,-429.87747753,0.00019178,2]
[363716257,1748842243264,-420.0,0.00019178,2]
[363716258,1748842243274,-422.64116115,0.00019178,2]
[363716259,1748842243284,-421.42303554,0.00019178,2]
[363716260,1748842243294,-428.86015664,0.00019178,2]
[363716261,1748842243303,-420.0,0.00019178,2]
[363716262,1748842243313,-427.21334514,0.00019178,2]
[363716263,1748842243323,-428.35924943,0.00019178,2]
[363716264,1748842243332,-420.0,0.00019178,2]
[363716265,1748842243342,-429.16825019,0.00019178,2]
[363716266,1748842243352,-459.57125077,0.00019178,2]
[363716267,1748842243361,-420.0,0.00019178,2]
[363716268,1748842243371,-421.56157708,0.00019178,2]
[363716269,1748842243380,-422.49121407,0.00019178,2]
[363716270,1748842243390,-427.17379591,0.00019178,2]
[363716271,1748842243399,-420.0,0.00019178,2]
[363716272,1748842243409,-300.45093343,0.00019178,2]
[363716273,1748842243418,-422.83449052,0.00019178,2]
[363716274,1748842243427,-426.71436726,0.00019178,2]
[363716275,1748842243436,-429.03549714,0.00019178,2]
[363716276,1748842243446,-420.0,0.00019178,2]
[363716277,1748842243455,-445.28600584,0.00019178,2]
[363716278,1748842243465,-425.09297046,0.00019178,2]
[363716279,1748842243475,-423.34484422,0.00019178,2]
[363716280,1748842243484,-423.44644112,0.00019178,2]
[363716281,1748842243494,-420.0,0.00019178,2]
[363716282,1748842243507,-434.2835704,0.00019178,2]
[363716283,1748842243518,-425.07942469,0.00019178,2]
[363716284,1748842243528,-433.06533355,0.00019178,2]
[363716285,1748842243537,-420.0,0.00019178,2]
[363716286,1748842243548,-523.06068151,0.00019178,2]
[363716287,1748842243557,-437.7070382,0.00019178,2]
[363716288,1748842243567,-422.8178081,0.00019178,2]
[363716289,1748842243576,-422.29747722,0.00019178,2]
[363716290,1748842243588,-433.61401936,0.00019178,2]
[363716291,1748842243598,-433.22586652,0.00019178,2]
[363716292,1748842243607,-437.55895503,0.00019178,2]
[363716293,1748842243616,-425.19454987,0.00019178,2]
[363716294,1748842243626,-420.0,0.00019178,2]
[363716295,1748842243635,-420.0,0.00019178,2]
[363716296,1748842243644,-420.0,0.00019178,2]
[363716297,1748842243654,-428.1567191,0.00019178,2]
[363716298,1748842243663,-420.0,0.00019178,2]
[363716299,1748842243673,-423.1332816,0.00019178,2]
[363716300,1748842243682,-424.93324991,0.00019178,2]
[363716301,1748842243692,-434.77596943,0.00019178,2]
[363716302,1748842243701,-164.0766811,0.00019178,2]
[363716303,1748842243710,-431.77016716,0.00019178,2]
[363716304,1748842243721,-420.0,0.00019178,2]
[363716305,1748842243731,-424.04903968,0.00019178,2]
[363716306,1748842243740,-431.23231374,0.00019178,2]
[363716307,1748842243750,-548.254758,0.00019178,2]
[363716308,1748842243759,-507.31994032,0.00019178,2]
[363716309,1748842243768,-425.52590662,0.00019178,2]
[363716310,1748842243779,-420.0,0.00019178,2]
[363716311,1748842243789,-428.68836176,0.00019178,2]
[363716312,1748842243799,-420.0,0.00019178,2]
[363716313,1748842243807,-468.90191539,0.00019178,2]
[363716314,1748842243817,-443.00945896,0.00019178,2]
[363716315,1748842243826,-420.0,0.00019178,2]
[363716316,1748842243835,-430.8410127,0.00019178,2]
[363716317,1748842243845,-420.0,0.00019178,2]
[363716318,1748842243855,-429.91840135,0.00019178,2]
[363716319,1748842243864,-420.0,0.00019178,2]
[363716320,1748842243874,-423.84163838,0.00019178,2]
[363716321,1748842243884,-420.0277557,0.00019178,2]
[363716322,1748842243894,-420.0,0.00019178,2]
[363716323,1748842243903,-427.24143209,0.00019178,2]
[363716324,1748842243913,-431.64196247,0.00019178,2]
[363716325,1748842243923,-423.40914667,0.00019178,2]
[363716326,1748842243933,-425.23742382,0.00019178,2]
[363716327,1748842243942,-424.2224103,0.00019178,2]
[363716328,1748842243952,-428.43021151,0.00019178,2]
[363716329,1748842243962,-184.01631144,0.00019178,2]
[363716330,1748842243972,-420.0,0.00019178,2]
[363716331,1748842243982,-421.11975641,0.00019178,2]
[363716332,1748842243991,-264.63276832,0.00019178,2]
[363716333,1748842244001,-423.61576166,0.00019178,2]
[363716334,1748842244010,-423.95448666,0.00019178,2]
[363716335,1748842244020,-420.0,0.00019178,2]
[363716336,1748842244029,-420.0,0.00019178,2]
[363716337,1748842244039,-420.0,0.00019178,2]
[363716338,1748842244048,-425.04681302,0.00019178,2]
[363716339,1748842244058,-425.76098945,0.00019178,2]
[363716340,1748842244067,-422.46573103,0.00019178,2]
[363716341,1748842244076,-420.0,0.00019178,2]
[363716342,1748842244086,-430.07307001,0.00019178,2]
[363716343,1748842244095,-422.82579742,0.00019178,2]
[363716344,1748842244104,-421.33469741,0.00019178,2]
[363716345,1748842244114,-427.46850895,0.00019178,2]
[363716346,1748842244123,-434.92790914,0.00019178,2]
[363716347,1748842244133,-420.0,0.00019178,2]
[363716348,1748842244142,-321.91881381,0.00019178,2]
[363716349,1748842244152,-431.45660905,0.00019178,2]
[363716350,1748842244162,-357.90042326,0.00019178,2]
[363716351,1748842244171,-425.44898575,0.00019178,2]
[363716352,1748842244181,-420.0,0.00019178,2]
[363716353,1748842244190,-420.0,0.00019178,2]
[363716354,1748842244200,-534.53997816,0.00019178,2]
[363716355,1748842244209,-426.65144093,0.00019178,2]
[363716356,1748842244219,-422.01915101,0.00019178,2]
[363716357,1748842244229,-430.6129732,0.00019178,2]
[363716358,1748842244238,-429.27297461,0.00019178,2]
[363716359,1748842244247,-425.35545483,0.00019178,2]
[363716360,1748842244256,-166.12755957,0.00019178,2]
[363716361,1748842244266,-420.0,0.00019178,2]
[363716362,1748842244275,-420.0,0.00019178,2]
[363716363,1748842244285,-433.38503708,0.00019178,2]
[363716364,1748842244294,-420.0,0.00019178,2]
[363716365,1748842244303,-419.97460433,0.00019178,2]
[363716366,1748842244312,-436.06563341,0.00019178,2]
[363716367,1748842244321,-420.0,0.00019178,2]
[363716368,1748842244331,-430.21236852,0.00019178,2]
[363716369,1748842244340,-425.90579324,0.00019178,2]
[363716370,1748842244350,-420.0,0.00019178,2]
[363716371,1748842244359,-503.7466839,0.00019178,2]
[363716372,1748842244369,-420.84362808,0.00019178,2]
[363716373,1748842244378,-428.77768541,0.00019178,2]
[363716374,1748842244388,-420.0,0.00019178,2]
[363716375,1748842244397,-420.0,0.00019178,2]
[363716376,1748842244407,-430.0669705,0.00019178,2]
[363716377,1748842244416,-426.43142112,0.00019178,2]
[363716378,1748842244426,-426.7520489,0.00019178,2]
[363716379,1748842244435,-420.0,0.00019178,2]
[363716380,1748842244444,-421.30591172,0.00019178,2]
[363716381,1748842244454,-460.85496101,0.00019178,2]
[363716382,1748842244464,-420.0,0.00019178,2]
[363716383,1748842244475,-427.13323271,0.00019178,2]
[363716384,1748842244484,-421.77582201,0.00019178,2]
[363716385,1748842244494,-420.0,0.00019178,2]
[363716386,1748842244504,-427.47562714,0.00019178,2]
[363716387,1748842244517,-541.44168066,0.00019178,2]
[363716388,1748842244527,-420.0,0.00019178,2]
[363716389,1748842244537,-504.06603757,0.00019178,2]
[363716390,1748842244546,-160.58053594,0.00019178,2]
[363716391,1748842244558,-425.68929084,0.00019178,2]
[363716392,1748842244568,-455.57025987,0.00019178,2]
[363716393,1748842244577,-420.58346994,0.00019178,2]
[363716394,1748842244588,-420.0,0.00019178,2]
[363716395,1748842244598,-424.0640363,0.00019178,2]
[363716396,1748842244607,-426.86694138,0.00019178,2]
[363716397,1748842244617,-420.0,0.00019178,2]
[363716398,1748842244627,-421.73605686,0.00019178,2]
[363716399,1748842244636,-434.62971967,0.00019178,2]
[363716400,1748842244646,-429.00700455,0.00019178,2]
[363716401,1748842244655,-423.3098264,0.00019178,2]
[363716402,1748842244665,-420.0,0.00019178,2]
[363716403,1748842244675,-420.0,0.00019178,2]
[363716404,1748842244684,-430.13094673,0.00019178,2]
[363716405,1748842244693,-423.70388228,0.00019178,2]
[363716406,1748842244703,-428.93738027,0.00019178,2]
[363716407,1748842244712,-426.55692564,0.00019178,2]
[363716408,1748842244721,-420.0,0.00019178,2]
[363716409,1748842244731,-425.69402888,0.00019178,2]
[363716410,1748842244740,-423.58740013,0.00019178,2]
[363716411,1748842244750,-422.8618455,0.00019178,2]
[363716412,1748842244759,-421.56385595,0.00019178,2]
[363716413,1748842244768,-426.83267641,0.00019178,2]
[363716414,1748842244778,-428.66094248,0.00019178,2]
[363716415,1748842244787,-427.66780096,0.00019178,2]
[363716416,1748842244797,-420.0,0.00019178,2]
[363716417,1748842244806,-420.0,0.00019178,2]
[363716418,1748842244816,-424.9542498,0.00019178,2]
[363716419,1748842244825,-431.06620912,0.00019178,2]
[363716420,1748842244834,-429.73834295,0.00019178,2]
[363716421,1748842244844,-429.15962198,0.00019178,2]
[363716422,1748842244853,-427.30428244,0.00019178,2]
[363716423,1748842244862,-424.87477286,0.00019178,2]
[363716424,1748842244871,-420.0,0.00019178,2]
[363716425,1748842244881,-421.83608318,0.00019178,2]
[363716426,1748842244890,-426.44404389,0.00019178,2]
[363716427,1748842244899,-426.7505348,0.00019178,2]
[363716428,1748842244909,-420.0,0.00019178,2]
[363716429,1748842244918,-429.53909243,0.00019178,2]
[363716430,1748842244928,-420.0,0.00019178,2]
[363716431,1748842244937,-425.8336524,0.00019178,2]
[363716432,1748842244947,-423.5649854,0.00019178,2]
[363716433,1748842244956,-421.6593425,0.00019178,2]
[363716434,1748842244965,-427.04349981,0.00019178,2]
[363716435,1748842244976,-377.86203517,0.00019178,2]
[363716436,1748842244986,-369.72267372,0.00019178,2]
[363716437,1748842244995,-423.99017779,0.00019178,2]
[363716438,1748842245004,-420.0,0.00019178,2]
[363716439,1748842245014,-426.07986432,0.00019178,2]
[363716440,1748842245023,-420.0,0.00019178,2]
[363716441,1748842245032,-422.75175264,0.00019178,2]
[363716442,1748842245041,-422.53877181,0.00019178,2]
[363716443,1748842245051,-423.04912675,0.00019178,2]
[363716444,1748842245061,-420.0,0.00019178,2]
[363716445,1748842245070,-420.0,0.00019178,2]
[363716446,1748842245079,-423.81538254,0.00019178,2]
[363716447,1748842245089,-420.97522793,0.00019178,2]
[363716448,1748842245099,-427.24038642,0.00019178,2]
[363716449,1748842245108,-425.32035241,0.00019178,2]
[363716450,1748842245117,-427.78651961,0.00019178,2]
[363716451,1748842245126,-420.0,0.00019178,2]
[363716452,1748842245136,-424.13224569,0.00019178,2]
[363716453,1748842245146,-431.14275335,0.00019178,2]
[363716454,1748842245155,-420.0,0.00019178,2]
[363716455,1748842245165,-425.05340317,0.00019178,2]
[363716456,1748842245174,-420.0,0.00019178,2]
[363716457,1748842245183,-429.07174353,0.00019178,2]
[363716458,1748842245193,-420.0,0.00019178,2]
[363716459,1748842245203,-421.24480167,0.00019178,2]
[363716460,1748842245212,-420.0,0.00019178,2]
[363716461,1748842245222,-421.92331181,0.00019178,2]
[363716462,1748842245232,-425.51235583,0.00019178,2]
[363716463,1748842245241,-421.40104956,0.00019178,2]
[363716464,1748842245250,-422.40828688,0.00019178,2]
[363716465,1748842245259,-420.0,0.00019178,2]
[363716466,1748842245269,-446.06893126,0.00019178,2]
[363716467,1748842245277,-420.0,0.00019178,2]
[363716468,1748842245287,-435.7758993,0.00019178,2]
[363716469,1748842245296,-429.66027216,0.00019178,2]
[363716470,1748842245305,-420.0,0.00019178,2]
[363716471,1748842245314,-420.0,0.00019178,2]
[363716472,1748842245323,-420.0,0.00019178,2]
[363716473,1748842245334,-420.0,0.00019178,2]
[363716474,1748842245343,-423.30043816,0.00019178,2]
[363716475,1748842245353,-434.85329334,0.00019178,2]
[363716476,1748842245362,-422.67176676,0.00019178,2]
[363716477,1748842245371,-428.01521396,0.00019178,2]
[363716478,1748842245381,-428.04948341,0.00019178,2]
[363716479,1748842245390,-424.78352884,0.00019178,2]
[363716480,1748842245399,-422.31934432,0.00019178,2]
[363716481,1748842245407,-421.12346784,0.00019178,2]
[363716482,1748842245417,-420.0,0.00019178,2]
[363716483,1748842245426,-429.206513,0.00019178,2]
[363716484,1748842245435,-282.67211699,0.00019178,2]
[363716485,1748842245444,-432.9081962,0.00019178,2]
[363716486,1748842245454,-420.0,0.00019178,2]
[363716487,1748842245463,-420.0,0.00019178,2]
[363716488,1748842245472,-426.28511435,0.00019178,2]
[363716489,1748842245482,-457.52379749,0.00019178,2]
[363716490,1748842245491,-425.7694426,0.00019178,2]
[363716491,1748842245500,-420.0,0.00019178,2]
[363716492,1748842245512,-426.55647396,0.00019178,2]
[363716493,1748842245521,-429.52973898,0.00019178,2]
[363716494,1748842245531,-427.1018879,0.00019178,2]
[363716495,1748842245539,-420.0,0.00019178,2]
[363716496,1748842245550,-425.45077826,0.00019178,2]
[363716498,1748842245559,-422.30956198,0.00019178,2]
[363716500,1748842245568,-425.59221393,0.00019178,2]
[363716501,1748842245577,-452.66152688,0.00019178,2]
[363716502,1748842245589,-421.86774691,0.00019178,2]
[363716503,1748842245598,-422.79411615,0.00019178,2]
[363716504,1748842245607,-420.0,0.00019178,2]
[363716505,1748842245616,-425.29630054,0.00019178,2]
[363716506,1748842245625,-420.0,0.00019178,2]
[363716507,1748842245634,-423.24741984,0.00019178,2]
[363716509,1748842245643,-425.81072707,0.00019178,2]
[363716511,1748842245651,-424.16842203,0.00019178,2]
[363716513,1748842245660,-420.0,0.00019178,2]
[363716515,1748842245670,-429.3046643,0.00019178,2]
[363716518,1748842245679,-218.79049232,0.00019178,2]
[363716521,1748842245688,-463.81128577,0.00019178,2]
[363716524,1748842245698,-429.55165109,0.00019178,2]
[363716527,1748842245707,-427.43924171,0.00019178,2]
[363716529,1748842245716,-423.12706021,0.00019178,2]
[363716531,1748842245725,-441.47976117,0.00019178,2]
[363716533,1748842245734,-424.59572033,0.00019178,2]
[363716536,1748842245744,-420.0,0.00019178,2]
[363716539,1748842245754,-420.0,0.00019178,2]
[363716540,1748842245765,-422.19223486,0.00019178,2]
[363716541,1748842245775,-420.0,0.00019178,2]
[363716542,1748842245783,-425.71478884,0.00019178,2]
[363716543,1748842245793,-422.44317901,0.00019178,2]
[363716544,1748842245802,-420.0,0.00019178,2]
[363716545,1748842245810,-424.41622128,0.00019178,2]
[363716546,1748842245820,-423.82214542,0.00019178,2]
[363716547,1748842245829,-497.03611016,0.00019178,2]
[363716548,1748842245838,-422.95794919,0.00019178,2]
[363716549,1748842245847,-427.1514373,0.00019178,2]
[363716550,1748842245856,-423.09131802,0.00019178,2]
[363716551,1748842245865,-420.0,0.00019178,2]
[363716552,1748842245875,-420.0,0.00019178,2]
[363716553,1748842245885,-420.0,0.00019178,2]
[363716554,1748842245894,-424.45751592,0.00019178,2]
[363716555,1748842245903,-420.0,0.00019178,2]
[363716556,1748842245912,-429.61024418,0.00019178,2]